[Event "*** SCC Grand Prix: Titled Tuesday Blitz"]
[Site "Chess.com"]
[Date "2020.07.14"]
[Round "4"]
[White "barriochess"]
[Black "MashaFromRussia"]
[Result "1-0"]
[WhiteElo "2300"]
[BlackElo "2431"]
[TimeControl "180+1"]
[EndTime "10:38:26 PDT"]
[Termination "barriochess won by resignation"]

1. d4 {[%clk 0:03:00.9]} 1... Nf6 {[%clk 0:02:59.7]} 2. c4 {[%clk 0:02:59.3]}
2... g6 {[%clk 0:02:59.8]} 3. Nc3 {[%clk 0:02:58.8]} 3... Bg7 {[%clk 0:03:00.4]}
4. e4 {[%clk 0:02:54.1]} 4... d6 {[%clk 0:03:00.8]} 5. f4 {[%clk 0:02:52.4]}
5... O-O {[%clk 0:03:01]} 6. Nf3 {[%clk 0:02:51.9]} 6... c5 {[%clk 0:03:01.3]}
7. d5 {[%clk 0:02:51.9]} 7... e6 {[%clk 0:03:01.6]} 8. Be2 {[%clk 0:02:52]} 8...
exd5 {[%clk 0:03:01.9]} 9. cxd5 {[%clk 0:02:52.9]} 9... Re8 {[%clk 0:03:02.3]}
10. e5 {[%clk 0:02:53.3]} 10... dxe5 {[%clk 0:03:01.5]} 11. fxe5 {[%clk
0:02:54.2]} 11... Ng4 {[%clk 0:03:01.7]} 12. e6 {[%clk 0:02:53.9]} 12... fxe6
{[%clk 0:03:02.2]} 13. d6 {[%clk 0:02:54.1]} 13... Nc6 {[%clk 0:03:02.6]} 14.
O-O {[%clk 0:02:53.5]} 14... Nd4 {[%clk 0:02:59.1]} 15. Ne4 {[%clk 0:02:53.4]}
15... b6 {[%clk 0:02:53.1]} 16. Nxd4 {[%clk 0:02:51.6]} 16... Bxd4+ {[%clk
0:02:52.3]} 17. Qxd4 {[%clk 0:02:51.7]} 17... cxd4 {[%clk 0:02:49.5]} 18. Bxg4
{[%clk 0:02:51.9]} 18... e5 {[%clk 0:02:33.9]} 19. d7 {[%clk 0:02:50.3]} 19...
Bxd7 {[%clk 0:02:24]} 20. Bxd7 {[%clk 0:02:48.8]} 20... Rf8 {[%clk 0:02:24.5]}
21. Rxf8+ {[%clk 0:02:42]} 21... Qxf8 {[%clk 0:02:25.4]} 22. Be6+ {[%clk
0:02:37.2]} 22... Kg7 {[%clk 0:02:25.4]} 23. Bg5 {[%clk 0:02:34.9]} 23... Qb4
{[%clk 0:02:13.4]} 24. Rf1 {[%clk 0:02:27.8]} 24... Rf8 {[%clk 0:02:09.3]} 25.
Bf6+ {[%clk 0:02:18.7]} 25... Kh6 {[%clk 0:02:08.6]} 26. a3 {[%clk 0:02:17.6]}
26... Qxb2 {[%clk 0:01:53.1]} 27. g4 {[%clk 0:02:03.9]} 27... d3 {[%clk
0:01:01.6]} 28. Rf3 {[%clk 0:00:58.1]} 28... Qc1+ {[%clk 0:00:34.8]} 29. Kg2
{[%clk 0:00:55.2]} 29... Rxf6 {[%clk 0:00:27.7]} 30. g5+ {[%clk 0:00:54.8]}
30... Qxg5+ {[%clk 0:00:27.3]} 31. Nxg5 {[%clk 0:00:54.4]} 31... Kxg5 {[%clk
0:00:26.7]} 32. h4+ {[%clk 0:00:53.5]} 32... Kxh4 {[%clk 0:00:24.3]} 33. Rxf6
{[%clk 0:00:53.6]} 33... e4 {[%clk 0:00:24.9]} 34. Kf2 {[%clk 0:00:52.5]} 1-0

[Event "*** SCC Grand Prix: Titled Tuesday Blitz"]
[Site "Chess.com"]
[Date "2020.07.14"]
[Round "4"]
[White "mishikomchedlishvili"]
[Black "Parhamov"]
[Result "0-1"]
[WhiteElo "2758"]
[BlackElo "3017"]
[TimeControl "180+1"]
[EndTime "10:38:27 PDT"]
[Termination "Parhamov won by resignation"]

1. d4 {[%clk 0:03:00.9]} 1... Nf6 {[%clk 0:02:58.8]} 2. Bg5 {[%clk 0:03:00.6]}
2... d5 {[%clk 0:02:58.2]} 3. e3 {[%clk 0:02:59.3]} 3... c5 {[%clk 0:02:57.6]}
4. Bxf6 {[%clk 0:02:59.3]} 4... gxf6 {[%clk 0:02:56.8]} 5. dxc5 {[%clk
0:02:59.2]} 5... e6 {[%clk 0:02:56.3]} 6. Nf3 {[%clk 0:02:58.8]} 6... Nc6 {[%clk
0:02:52.3]} 7. Be2 {[%clk 0:02:57.6]} 7... Bxc5 {[%clk 0:02:48.1]} 8. O-O {[%clk
0:02:57]} 8... Qe7 {[%clk 0:02:47.3]} 9. c4 {[%clk 0:02:55.6]} 9... dxc4 {[%clk
0:02:46.1]} 10. Qa4 {[%clk 0:02:54.8]} 10... Bd7 {[%clk 0:02:45.8]} 11. Qxc4
{[%clk 0:02:54.4]} 11... O-O {[%clk 0:02:42.6]} 12. Nc3 {[%clk 0:02:52]} 12...
Bb6 {[%clk 0:02:38.8]} 13. Rfd1 {[%clk 0:02:44.8]} 13... Rfd8 {[%clk 0:02:38.3]}
14. Qh4 {[%clk 0:02:14.2]} 14... f5 {[%clk 0:02:35]} 15. Ng5 {[%clk 0:02:08.8]}
15... f6 {[%clk 0:02:33.4]} 16. Nh3 {[%clk 0:02:05]} 16... Be8 {[%clk
0:02:15.9]} 17. Nf4 {[%clk 0:02:04.3]} 17... Bf7 {[%clk 0:01:58.1]} 18. Bh5
{[%clk 0:01:51.3]} 18... Rxd1+ {[%clk 0:01:53.3]} 19. Rxd1 {[%clk 0:01:50]}
19... Rd8 {[%clk 0:01:53.8]} 20. Bxf7+ {[%clk 0:01:48.3]} 20... Qxf7 {[%clk
0:01:53.5]} 21. Rxd8+ {[%clk 0:01:44.4]} 21... Bxd8 {[%clk 0:01:54.4]} 22. h3
{[%clk 0:01:38.6]} 22... Be7 {[%clk 0:01:50.4]} 23. a3 {[%clk 0:01:19.5]} 23...
a6 {[%clk 0:01:34]} 24. Qg3+ {[%clk 0:01:18.8]} 24... Kf8 {[%clk 0:01:29.8]} 25.
Qf3 {[%clk 0:01:18.2]} 25... Bd6 {[%clk 0:01:28.2]} 26. Nd3 {[%clk 0:01:09.9]}
26... Ke7 {[%clk 0:01:26.8]} 27. Qd1 {[%clk 0:01:09.4]} 27... Qe8 {[%clk
0:01:19]} 28. Ne2 {[%clk 0:01:07.6]} 28... Qd7 {[%clk 0:01:16.8]} 29. Qb3 {[%clk
0:01:07.5]} 29... Ne5 {[%clk 0:01:15.6]} 30. Ndf4 {[%clk 0:01:06.3]} 30... Ng6
{[%clk 0:01:11.7]} 31. Nd3 {[%clk 0:00:54.2]} 31... Ne5 {[%clk 0:01:08.1]} 32.
Nef4 {[%clk 0:00:52.7]} 32... Nxd3 {[%clk 0:01:04.7]} 33. Nxd3 {[%clk
0:00:52.8]} 33... Qc6 {[%clk 0:01:04.9]} 34. Ne1 {[%clk 0:00:46.2]} 34... b5
{[%clk 0:01:03.7]} 35. Nf3 {[%clk 0:00:46.1]} 35... Qc1+ {[%clk 0:00:56.3]} 36.
Qd1 {[%clk 0:00:34.1]} 0-1

[Event "*** SCC Grand Prix: Titled Tuesday Blitz"]
[Site "Chess.com"]
[Date "2020.07.14"]
[Round "4"]
[White "Azoulas1"]
[Black "Sam_ChessMood"]
[Result "0-1"]
[WhiteElo "2026"]
[BlackElo "2804"]
[TimeControl "180+1"]
[EndTime "10:38:30 PDT"]
[Termination "Sam_ChessMood won by resignation"]

1. e4 {[%clk 0:02:53.7]} 1... e5 {[%clk 0:02:59.7]} 2. Nf3 {[%clk 0:02:52.4]}
2... d6 {[%clk 0:02:59.8]} 3. d4 {[%clk 0:02:49.8]} 3... exd4 {[%clk 0:02:59.9]}
4. Qxd4 {[%clk 0:02:49.3]} 4... Nc6 {[%clk 0:02:57.8]} 5. Bb5 {[%clk 0:02:47.5]}
5... Bd7 {[%clk 0:02:58]} 6. Bxc6 {[%clk 0:02:46.6]} 6... Bxc6 {[%clk
0:02:58.1]} 7. O-O {[%clk 0:02:46.2]} 7... Nf6 {[%clk 0:02:44]} 8. Re1 {[%clk
0:02:42.8]} 8... Be7 {[%clk 0:02:43]} 9. c4 {[%clk 0:02:42.1]} 9... O-O {[%clk
0:02:40.3]} 10. Nc3 {[%clk 0:02:41.4]} 10... Nd7 {[%clk 0:02:38.9]} 11. Bf4
{[%clk 0:02:33.6]} 11... Bf6 {[%clk 0:02:37.4]} 12. Qd2 {[%clk 0:02:30.2]} 12...
Bxc3 {[%clk 0:02:13.1]} 13. Qxc3 {[%clk 0:02:27.3]} 13... Re8 {[%clk 0:02:12.2]}
14. Qd3 {[%clk 0:02:21.9]} 14... Nc5 {[%clk 0:02:11.2]} 15. Qd4 {[%clk 0:02:09]}
15... Nxe4 {[%clk 0:01:51.6]} 16. Rad1 {[%clk 0:02:03.4]} 16... Qf6 {[%clk
0:01:48.3]} 17. Qxf6 {[%clk 0:01:55.3]} 17... Nxf6 {[%clk 0:01:49.2]} 18. Rxe8+
{[%clk 0:01:53.6]} 18... Rxe8 {[%clk 0:01:49]} 19. Nd4 {[%clk 0:01:53.2]} 19...
Bd7 {[%clk 0:01:46.5]} 20. f3 {[%clk 0:01:49.7]} 20... h6 {[%clk 0:01:38.7]} 21.
b4 {[%clk 0:01:47.5]} 21... b6 {[%clk 0:01:27.3]} 22. a3 {[%clk 0:01:42.5]}
22... Ra8 {[%clk 0:01:13.1]} 23. Rc1 {[%clk 0:01:36.3]} 23... a5 {[%clk
0:01:08.5]} 24. b5 {[%clk 0:01:17.6]} 24... Re8 {[%clk 0:01:07.3]} 25. Kf2
{[%clk 0:01:15.7]} 25... Be6 {[%clk 0:01:04.2]} 26. g4 {[%clk 0:01:07.2]} 26...
Nd7 {[%clk 0:01:02.8]} 27. Nb3 {[%clk 0:01:01]} 27... f6 {[%clk 0:00:58]} 28.
Bg3 {[%clk 0:00:54.4]} 28... Bf7 {[%clk 0:00:56.6]} 29. h3 {[%clk 0:00:51.8]}
29... g5 {[%clk 0:00:54.6]} 30. Nd4 {[%clk 0:00:49.4]} 30... Nc5 {[%clk
0:00:50.2]} 31. Rc3 {[%clk 0:00:43.7]} 31... Bg6 {[%clk 0:00:45.3]} 32. h4
{[%clk 0:00:38.6]} 32... Kf7 {[%clk 0:00:45]} 33. h5 {[%clk 0:00:36.7]} 33...
Bh7 {[%clk 0:00:44.8]} 34. f4 {[%clk 0:00:29.5]} 34... Ne4+ {[%clk 0:00:44.2]}
0-1

[Event "*** SCC Grand Prix: Titled Tuesday Blitz"]
[Site "Chess.com"]
[Date "2020.07.14"]
[Round "4"]
[White "oskariot"]
[Black "NemtsevIgor"]
[Result "1-0"]
[WhiteElo "2642"]
[BlackElo "2336"]
[TimeControl "180+1"]
[EndTime "10:38:34 PDT"]
[Termination "oskariot won by checkmate"]

1. g3 {[%clk 0:02:50.3]} 1... g6 {[%clk 0:02:57.5]} 2. Bg2 {[%clk 0:02:50.6]}
2... Bg7 {[%clk 0:02:57.8]} 3. a4 {[%clk 0:02:51.5]} 3... e5 {[%clk 0:02:53.5]}
4. a5 {[%clk 0:02:51.5]} 4... a6 {[%clk 0:02:49.5]} 5. Ra3 {[%clk 0:02:49.4]}
5... Ne7 {[%clk 0:02:47.3]} 6. h4 {[%clk 0:02:48.8]} 6... O-O {[%clk 0:02:46.1]}
7. h5 {[%clk 0:02:48.6]} 7... d5 {[%clk 0:02:45.1]} 8. h6 {[%clk 0:02:47.5]}
8... Bh8 {[%clk 0:02:44.6]} 9. d3 {[%clk 0:02:45.2]} 9... Nbc6 {[%clk
0:02:42.1]} 10. c3 {[%clk 0:02:45.2]} 10... f5 {[%clk 0:02:36.4]} 11. Nh3 {[%clk
0:02:41.1]} 11... e4 {[%clk 0:02:19.7]} 12. d4 {[%clk 0:02:36.6]} 12... Bf6
{[%clk 0:02:13.3]} 13. Nd2 {[%clk 0:02:26.7]} 13... e3 {[%clk 0:02:10.3]} 14.
Nf3 {[%clk 0:02:22.3]} 14... exf2+ {[%clk 0:02:09.7]} 15. Kxf2 {[%clk
0:02:10.7]} 15... Kh8 {[%clk 0:02:00.6]} 16. Nhg5 {[%clk 0:02:08.2]} 16... Ng8
{[%clk 0:01:43.2]} 17. Bf4 {[%clk 0:02:04]} 17... Qe7 {[%clk 0:01:31.7]} 18. c4
{[%clk 0:01:46.7]} 18... dxc4 {[%clk 0:01:26.9]} 19. Re3 {[%clk 0:01:46]} 19...
Qd8 {[%clk 0:01:23.1]} 20. d5 {[%clk 0:01:39.8]} 20... Nce7 {[%clk 0:01:18.6]}
21. Ne5 {[%clk 0:01:31]} 21... Qe8 {[%clk 0:01:00.5]} 22. d6 {[%clk 0:01:25.7]}
22... cxd6 {[%clk 0:00:51.9]} 23. Qxd6 {[%clk 0:01:26.6]} 23... c3 {[%clk
0:00:12.9]} 24. bxc3 {[%clk 0:01:24.3]} 24... Ra7 {[%clk 0:00:12.7]} 25. Qb6
{[%clk 0:01:17.5]} 25... Ra8 {[%clk 0:00:12.3]} 26. Qd6 {[%clk 0:01:07.6]} 26...
Ra7 {[%clk 0:00:12.1]} 27. Bd5 {[%clk 0:01:07.6]} 27... Nxd5 {[%clk 0:00:06.2]}
28. Qxf8 {[%clk 0:00:47]} 28... Qxf8 {[%clk 0:00:05]} 29. Nef7+ {[%clk
0:00:47.3]} 29... Qxf7 {[%clk 0:00:04.7]} 30. Nxf7# {[%clk 0:00:48.2]} 1-0

[Event "*** SCC Grand Prix: Titled Tuesday Blitz"]
[Site "Chess.com"]
[Date "2020.07.14"]
[Round "4"]
[White "AleksanderHnydiuk"]
[Black "Fischerev7"]
[Result "0-1"]
[WhiteElo "2572"]
[BlackElo "2372"]
[TimeControl "180+1"]
[EndTime "10:38:35 PDT"]
[Termination "Fischerev7 won by resignation"]

1. d4 {[%clk 0:03:00.9]} 1... Nf6 {[%clk 0:02:58.7]} 2. c4 {[%clk 0:03:00.4]}
2... c5 {[%clk 0:02:54.3]} 3. Nf3 {[%clk 0:03:00]} 3... e6 {[%clk 0:02:52.4]} 4.
g3 {[%clk 0:02:59]} 4... cxd4 {[%clk 0:02:50.5]} 5. Nxd4 {[%clk 0:02:59.1]} 5...
Nc6 {[%clk 0:02:50.8]} 6. Nc3 {[%clk 0:02:56.6]} 6... a6 {[%clk 0:02:45.2]} 7.
Bg2 {[%clk 0:02:56]} 7... d5 {[%clk 0:02:42.8]} 8. cxd5 {[%clk 0:02:49.4]} 8...
exd5 {[%clk 0:02:39.9]} 9. O-O {[%clk 0:02:48.6]} 9... Be7 {[%clk 0:02:38.1]}
10. Bf4 {[%clk 0:02:41.8]} 10... O-O {[%clk 0:02:35.2]} 11. Rc1 {[%clk
0:02:41.7]} 11... Be6 {[%clk 0:02:33.5]} 12. Na4 {[%clk 0:02:28.6]} 12... Rc8
{[%clk 0:01:42.8]} 13. Nxc6 {[%clk 0:02:27.2]} 13... Rxc6 {[%clk 0:01:39]} 14.
Qd4 {[%clk 0:02:20.1]} 14... Qa5 {[%clk 0:01:31.3]} 15. Rxc6 {[%clk 0:02:17.9]}
15... bxc6 {[%clk 0:01:32.2]} 16. Rc1 {[%clk 0:02:14.8]} 16... c5 {[%clk
0:01:13.2]} 17. Nxc5 {[%clk 0:02:09.5]} 17... Bxc5 {[%clk 0:01:08.4]} 18. Qxc5
{[%clk 0:01:56.4]} 18... Qxa2 {[%clk 0:01:07.3]} 19. Bd6 {[%clk 0:01:36.7]}
19... Re8 {[%clk 0:01:00.9]} 20. Be5 {[%clk 0:01:29]} 20... Ne4 {[%clk
0:00:26.4]} 21. Qc6 {[%clk 0:01:24.9]} 21... Rf8 {[%clk 0:00:21.1]} 22. Bd4
{[%clk 0:01:22.5]} 22... h6 {[%clk 0:00:17.9]} 23. h3 {[%clk 0:01:19.8]} 23...
Rc8 {[%clk 0:00:17.2]} 24. Qxc8+ {[%clk 0:01:17.5]} 24... Bxc8 {[%clk
0:00:18.1]} 25. Rxc8+ {[%clk 0:01:17.4]} 25... Kh7 {[%clk 0:00:18.9]} 26. Rc7
{[%clk 0:01:15.5]} 26... Kg6 {[%clk 0:00:12.3]} 27. h4 {[%clk 0:01:13.7]} 27...
h5 {[%clk 0:00:12.1]} 28. Rc6+ {[%clk 0:01:08.3]} 28... f6 {[%clk 0:00:11.8]}
29. Bh3 {[%clk 0:01:01.1]} 29... Qa4 {[%clk 0:00:11.4]} 30. Bd7 {[%clk 0:00:55]}
30... Qxd4 {[%clk 0:00:10.8]} 31. Be8+ {[%clk 0:00:54.4]} 31... Kh6 {[%clk
0:00:10.7]} 0-1

[Event "*** SCC Grand Prix: Titled Tuesday Blitz"]
[Site "Chess.com"]
[Date "2020.07.14"]
[Round "4"]
[White "VerdeNotte"]
[Black "maximnovik"]
[Result "1-0"]
[WhiteElo "2788"]
[BlackElo "2511"]
[TimeControl "180+1"]
[EndTime "10:38:37 PDT"]
[Termination "VerdeNotte won on time"]

1. e4 {[%clk 0:02:58.7]} 1... c6 {[%clk 0:02:59.6]} 2. d4 {[%clk 0:02:57.8]}
2... d5 {[%clk 0:02:59.9]} 3. e5 {[%clk 0:02:58]} 3... Bf5 {[%clk 0:02:59.1]} 4.
h4 {[%clk 0:02:58.1]} 4... h6 {[%clk 0:02:58.5]} 5. Bd3 {[%clk 0:02:57.6]} 5...
Bxd3 {[%clk 0:02:58.1]} 6. cxd3 {[%clk 0:02:58.5]} 6... e6 {[%clk 0:02:58.5]} 7.
Nc3 {[%clk 0:02:59]} 7... h5 {[%clk 0:02:55.3]} 8. Nf3 {[%clk 0:02:56.2]} 8...
Nh6 {[%clk 0:02:51]} 9. Bxh6 {[%clk 0:02:55.8]} 9... Rxh6 {[%clk 0:02:50.3]} 10.
O-O {[%clk 0:02:53.2]} 10... Be7 {[%clk 0:02:50]} 11. g3 {[%clk 0:02:53.2]}
11... Nd7 {[%clk 0:02:48.7]} 12. Ne2 {[%clk 0:02:48.5]} 12... g5 {[%clk
0:02:39.7]} 13. Qd2 {[%clk 0:02:33.3]} 13... Rg6 {[%clk 0:02:35.8]} 14. hxg5
{[%clk 0:02:32.4]} 14... Bxg5 {[%clk 0:02:34.8]} 15. Nxg5 {[%clk 0:02:32]} 15...
Qxg5 {[%clk 0:02:31]} 16. Qxg5 {[%clk 0:02:31.5]} 16... Rxg5 {[%clk 0:02:30.7]}
17. f4 {[%clk 0:02:31.9]} 17... Rg7 {[%clk 0:02:18.4]} 18. Kf2 {[%clk
0:02:31.8]} 18... Ke7 {[%clk 0:02:14.4]} 19. Rh1 {[%clk 0:02:31.5]} 19... Rh8
{[%clk 0:02:11.9]} 20. Rh3 {[%clk 0:02:29.2]} 20... c5 {[%clk 0:02:09.2]} 21.
Rah1 {[%clk 0:02:24.4]} 21... cxd4 {[%clk 0:02:09.1]} 22. Nxd4 {[%clk
0:02:23.1]} 22... Nc5 {[%clk 0:02:07.2]} 23. Ke3 {[%clk 0:02:22.9]} 23... Rhg8
{[%clk 0:02:06.4]} 24. Ne2 {[%clk 0:02:22.7]} 24... h4 {[%clk 0:01:57.6]} 25.
gxh4 {[%clk 0:02:13.6]} 25... Rg2 {[%clk 0:01:51]} 26. R1h2 {[%clk 0:02:10.2]}
26... Rxh2 {[%clk 0:01:10.9]} 27. Rxh2 {[%clk 0:02:10.1]} 27... f6 {[%clk
0:01:06]} 28. h5 {[%clk 0:02:05.5]} 28... fxe5 {[%clk 0:00:53.7]} 29. fxe5
{[%clk 0:02:06.4]} 29... Nd7 {[%clk 0:00:53.3]} 30. d4 {[%clk 0:02:06.4]} 30...
Nf8 {[%clk 0:00:52.5]} 31. Nf4 {[%clk 0:02:01.6]} 31... Rg3+ {[%clk 0:00:49.2]}
32. Kf2 {[%clk 0:02:01.6]} 32... Rg4 {[%clk 0:00:46.8]} 33. Kf3 {[%clk
0:02:01.5]} 33... Rg1 {[%clk 0:00:46.1]} 34. Rg2 {[%clk 0:01:55.8]} 34... Rf1+
{[%clk 0:00:38.3]} 35. Ke3 {[%clk 0:01:55.1]} 35... Kf7 {[%clk 0:00:37.2]} 36.
h6 {[%clk 0:01:53.5]} 36... Rh1 {[%clk 0:00:34.5]} 37. Rg7+ {[%clk 0:01:53.1]}
37... Ke8 {[%clk 0:00:34.6]} 38. Rxb7 {[%clk 0:01:47.3]} 38... Rxh6 {[%clk
0:00:33.3]} 39. Rxa7 {[%clk 0:01:47.7]} 39... Rh2 {[%clk 0:00:33.7]} 40. Rb7
{[%clk 0:01:47.2]} 40... Kd8 {[%clk 0:00:23]} 41. a4 {[%clk 0:01:46.8]} 41...
Kc8 {[%clk 0:00:22.6]} 42. Rb6 {[%clk 0:01:43]} 42... Kc7 {[%clk 0:00:21.6]} 43.
a5 {[%clk 0:01:42.1]} 43... Rh1 {[%clk 0:00:20.5]} 44. Nxe6+ {[%clk 0:01:40.8]}
44... Nxe6 {[%clk 0:00:19.8]} 45. Rxe6 {[%clk 0:01:41.7]} 45... Ra1 {[%clk
0:00:19.8]} 46. a6 {[%clk 0:01:35.9]} 46... Ra2 {[%clk 0:00:18.5]} 47. a7 {[%clk
0:01:35.5]} 47... Rxa7 {[%clk 0:00:17.8]} 48. Re7+ {[%clk 0:01:35.7]} 1-0

[Event "*** SCC Grand Prix: Titled Tuesday Blitz"]
[Site "Chess.com"]
[Date "2020.07.14"]
[Round "4"]
[White "Pavel_Mir"]
[Black "Klavdia_Nik"]
[Result "1-0"]
[WhiteElo "2359"]
[BlackElo "2067"]
[TimeControl "180+1"]
[EndTime "10:38:37 PDT"]
[Termination "Pavel_Mir won on time"]

1. e4 {[%clk 0:02:56.4]} 1... c5 {[%clk 0:02:57.1]} 2. Nf3 {[%clk 0:02:56.1]}
2... d6 {[%clk 0:02:57]} 3. d4 {[%clk 0:02:56.1]} 3... cxd4 {[%clk 0:02:57.4]}
4. Nxd4 {[%clk 0:02:56.8]} 4... Nf6 {[%clk 0:02:57.6]} 5. Nc3 {[%clk 0:02:57.3]}
5... a6 {[%clk 0:02:57.1]} 6. f4 {[%clk 0:02:57.9]} 6... Qc7 {[%clk 0:02:40.6]}
7. Bd3 {[%clk 0:02:56.6]} 7... g6 {[%clk 0:02:38.2]} 8. O-O {[%clk 0:02:55.7]}
8... Bg7 {[%clk 0:02:38.6]} 9. Kh1 {[%clk 0:02:55.8]} 9... O-O {[%clk
0:02:38.4]} 10. Nf3 {[%clk 0:02:51.6]} 10... Nbd7 {[%clk 0:02:37.6]} 11. Qe1
{[%clk 0:02:49.1]} 11... Nc5 {[%clk 0:02:29.6]} 12. e5 {[%clk 0:02:46.3]} 12...
Nxd3 {[%clk 0:02:28.5]} 13. cxd3 {[%clk 0:02:44.4]} 13... dxe5 {[%clk
0:02:26.4]} 14. fxe5 {[%clk 0:02:44.6]} 14... Ng4 {[%clk 0:01:51.7]} 15. d4
{[%clk 0:02:31.3]} 15... h5 {[%clk 0:01:40.1]} 16. Bg5 {[%clk 0:02:24.5]} 16...
f6 {[%clk 0:01:31.3]} 17. Bf4 {[%clk 0:02:07.9]} 17... Qd8 {[%clk 0:01:18.8]}
18. Rd1 {[%clk 0:01:55]} 18... b5 {[%clk 0:01:01.7]} 19. h3 {[%clk 0:01:18.1]}
19... Nh6 {[%clk 0:00:59.6]} 20. Qg3 {[%clk 0:01:10.8]} 20... Kh7 {[%clk
0:00:51.5]} 21. Bxh6 {[%clk 0:00:57.3]} 21... Bxh6 {[%clk 0:00:50.6]} 22. Nh4
{[%clk 0:00:57.1]} 22... Rg8 {[%clk 0:00:24.7]} 23. Ne4 {[%clk 0:00:50.8]} 23...
g5 {[%clk 0:00:19.3]} 24. exf6 {[%clk 0:00:46.2]} 24... gxh4 {[%clk 0:00:15.9]}
25. Qxh4 {[%clk 0:00:45.6]} 25... Qd5 {[%clk 0:00:07]} 26. fxe7 {[%clk
0:00:41.7]} 1-0

[Event "*** SCC Grand Prix: Titled Tuesday Blitz"]
[Site "Chess.com"]
[Date "2020.07.14"]
[Round "4"]
[White "jannat65"]
[Black "isainz"]
[Result "1-0"]
[WhiteElo "1819"]
[BlackElo "2140"]
[TimeControl "180+1"]
[EndTime "10:38:38 PDT"]
[Termination "jannat65 won on time"]

1. e4 {[%clk 0:03:00.9]} 1... c5 {[%clk 0:00:54]} 2. Nf3 {[%clk 0:03:00.1]} 2...
Nc6 {[%clk 0:00:53.7]} 3. d4 {[%clk 0:02:59.4]} 3... cxd4 {[%clk 0:00:53.3]} 4.
Nxd4 {[%clk 0:02:59.9]} 4... Nf6 {[%clk 0:00:53.4]} 5. Nc3 {[%clk 0:03:00]} 5...
e5 {[%clk 0:00:53.4]} 6. Ndb5 {[%clk 0:02:59.6]} 6... d6 {[%clk 0:00:53.4]} 7.
Bg5 {[%clk 0:02:59]} 7... a6 {[%clk 0:00:53]} 8. Na3 {[%clk 0:02:59.1]} 8... b5
{[%clk 0:00:51.8]} 9. Nd5 {[%clk 0:02:59.1]} 9... Be7 {[%clk 0:00:52]} 10. Bxf6
{[%clk 0:02:57.4]} 10... Bxf6 {[%clk 0:00:51.9]} 11. c3 {[%clk 0:02:57.9]} 11...
Bg5 {[%clk 0:00:51.3]} 12. Nc2 {[%clk 0:02:57.2]} 12... Ne7 {[%clk 0:00:50.9]}
13. Ncb4 {[%clk 0:02:43.3]} 13... O-O {[%clk 0:00:17.8]} 14. Nxe7+ {[%clk
0:02:39.1]} 14... Qxe7 {[%clk 0:00:17.2]} 15. Nd5 {[%clk 0:02:38.5]} 15... Qb7
{[%clk 0:00:15]} 16. Be2 {[%clk 0:02:37.7]} 16... Be6 {[%clk 0:00:12.6]} 17. O-O
{[%clk 0:02:35.1]} 17... f5 {[%clk 0:00:11.6]} 18. f3 {[%clk 0:02:33.7]} 18...
f4 {[%clk 0:00:11.6]} 19. Kh1 {[%clk 0:02:33.1]} 19... Qf7 {[%clk 0:00:09.6]}
20. c4 {[%clk 0:02:28.5]} 20... Qh5 {[%clk 0:00:09.1]} 21. Qe1 {[%clk
0:02:23.7]} 21... Bxd5 {[%clk 0:00:08.5]} 22. cxd5 {[%clk 0:02:22.6]} 22... Rf6
{[%clk 0:00:08.7]} 23. Qf2 {[%clk 0:02:22.3]} 23... Rh6 {[%clk 0:00:08.5]} 24.
Qg1 {[%clk 0:02:22.2]} 24... Bh4 {[%clk 0:00:08]} 25. h3 {[%clk 0:01:42.6]}
25... Rf8 {[%clk 0:00:06.2]} 26. Rac1 {[%clk 0:01:40.6]} 26... Rg6 {[%clk
0:00:06]} 27. g4 {[%clk 0:01:31.3]} 27... fxg3 {[%clk 0:00:05.2]} 28. Qg2 {[%clk
0:01:31.6]} 28... Bg5 {[%clk 0:00:03.7]} 29. Rc7 {[%clk 0:01:20.9]} 29... Bf4
{[%clk 0:00:03.6]} 30. Rg1 {[%clk 0:01:02.5]} 30... Rh6 {[%clk 0:00:03.6]} 31.
Bf1 {[%clk 0:01:01.4]} 31... g6 {[%clk 0:00:01.6]} 32. Ra7 {[%clk 0:01:00.6]}
32... Rf7 {[%clk 0:00:01.8]} 33. Ra8+ {[%clk 0:01:00.5]} 33... Kg7 {[%clk
0:00:02]} 34. Rxa6 {[%clk 0:01:00]} 34... Qg5 {[%clk 0:00:01.1]} 35. Rxd6 {[%clk
0:00:59]} 1-0

[Event "*** SCC Grand Prix: Titled Tuesday Blitz"]
[Site "Chess.com"]
[Date "2020.07.14"]
[Round "4"]
[White "GMCarbone"]
[Black "rududuyk"]
[Result "1-0"]
[WhiteElo "2296"]
[BlackElo "2068"]
[TimeControl "180+1"]
[EndTime "10:38:39 PDT"]
[Termination "GMCarbone won on time"]

1. d4 {[%clk 0:03:00.9]} 1... e6 {[%clk 0:02:59.4]} 2. c4 {[%clk 0:03:01.1]}
2... f5 {[%clk 0:02:59.2]} 3. g3 {[%clk 0:02:59.8]} 3... Nf6 {[%clk 0:02:59.6]}
4. Bg2 {[%clk 0:03:00.6]} 4... Be7 {[%clk 0:03:00.1]} 5. Nf3 {[%clk 0:03:01.1]}
5... O-O {[%clk 0:03:00.6]} 6. O-O {[%clk 0:03:01.6]} 6... d6 {[%clk 0:03:01]}
7. Nc3 {[%clk 0:03:01.9]} 7... Ne4 {[%clk 0:03:00.6]} 8. Qc2 {[%clk 0:03:01.3]}
8... Nxc3 {[%clk 0:02:59.8]} 9. Qxc3 {[%clk 0:03:02.2]} 9... a5 {[%clk
0:02:59.8]} 10. Rd1 {[%clk 0:02:48]} 10... Bf6 {[%clk 0:02:53.7]} 11. Qc2 {[%clk
0:02:46.4]} 11... Qe8 {[%clk 0:02:51.8]} 12. e4 {[%clk 0:02:41.6]} 12... e5
{[%clk 0:02:45.1]} 13. dxe5 {[%clk 0:02:36.7]} 13... dxe5 {[%clk 0:02:44.8]} 14.
exf5 {[%clk 0:02:11.3]} 14... Nc6 {[%clk 0:02:35.1]} 15. Qe4 {[%clk 0:02:08.4]}
15... Qh5 {[%clk 0:02:16.8]} 16. g4 {[%clk 0:02:04.8]} 16... Qe8 {[%clk
0:02:07]} 17. g5 {[%clk 0:02:04.3]} 17... Bd8 {[%clk 0:02:01.2]} 18. Bh3 {[%clk
0:02:02.6]} 18... Kh8 {[%clk 0:01:42.1]} 19. Be3 {[%clk 0:01:46.2]} 19... g6
{[%clk 0:01:36.8]} 20. Nh4 {[%clk 0:01:32.6]} 20... gxf5 {[%clk 0:01:19.5]} 21.
Bxf5 {[%clk 0:01:28.5]} 21... Bxf5 {[%clk 0:01:11.8]} 22. Nxf5 {[%clk
0:01:29.4]} 22... Qh5 {[%clk 0:01:11.4]} 23. Ng3 {[%clk 0:01:16.2]} 23... Qf7
{[%clk 0:01:00.9]} 24. Rd5 {[%clk 0:01:09.2]} 24... Qg7 {[%clk 0:00:32.6]} 25.
h4 {[%clk 0:01:03.6]} 25... Ra6 {[%clk 0:00:18]} 26. Rad1 {[%clk 0:01:02.4]}
26... Be7 {[%clk 0:00:17.6]} 27. Rd7 {[%clk 0:00:57.4]} 27... Nb4 {[%clk
0:00:08.8]} 28. Nh5 {[%clk 0:00:54.4]} 28... Qf7 {[%clk 0:00:07.3]} 29. Nf6
{[%clk 0:00:52.1]} 29... Qe6 {[%clk 0:00:05.1]} 30. Rxe7 {[%clk 0:00:51]} 30...
Qxe7 {[%clk 0:00:04.4]} 31. Rd7 {[%clk 0:00:50.6]} 1-0